Cogmind - Beta 15 @@@ ROGUE MODE // 2025.08.12 @ 23:31:19 Player: Peregrine Result: Self-destructed Performance ------------- Evolutions (1) 500 Regions Visited (4) 800 Robots Destroyed (22) 110 Value Destroyed (484) 484 Prototype IDs (0) 0 Alien Tech Used (0) 0 Bonus (0) 0 TOTAL SCORE: 1894 Bonus ------- None Cogmind --------- Core Integrity 9/400 Matter 300/300 Energy 100/100 System Corruption 0% Temperature Cool (0) Movement Core (350) Ox6 Location -9/Mines Parts ------- > --- POWER (1) -------- (None) > --- PROPULSION (2) --- (None) > --- UTILITY (4) ------ Large Storage Unit > --- WEAPON (2) ------- (None) > --- INVENTORY (15) --- Compact Wheel Compact Wheel Medium Storage Unit Terrain Scan Processor Peak State ------------ > --- POWER ------------ Light Nuclear Core > --- PROPULSION ------- Aluminum Leg Aluminum Leg > --- UTILITY ---------- Small Storage Unit Light Armor Plating > --- WEAPON ----------- Assault Rifle Light Assault Rifle > --- INVENTORY -------- Ion Engine Light Ion Engine Light Treads Light Treads Compact Wheel Compact Wheel Light Assault Rifle [Rating: 9] Favorites ----------- Power Light Nuclear Core Engine Ion Engine Power Core Light Nuclear Core Propulsion Light Treads Treads Light Treads Leg Aluminum Leg Utility Small Storage Unit Device Heat Sink Storage Small Storage Unit Protection Light Armor Plating Weapon Light Assault Rifle Energy Gun Small Laser Ballistic Gun Light Assault Rifle Build | -11 -10 -10 -9 -9 ------- Run | Yrd Mat Min Mat Min Slots Evolved 2 | . . . 2 . Power . | . . . . . Propulsion . | . . . . . Utility 2 | . . . 2 . Weapon . | . . . . . Parts Attached 17 | . 2 4 10 1 Power 3 | . 1 . 1 1 Engine 2 | . . . 1 1 Core 1 | . 1 . . . Reactor . | . . . . . Propulsion 5 | . . 4 1 . Treads 3 | . . 2 1 . Leg 2 | . . 2 . . Wheel . | . . . . . Hover . | . . . . . Flight . | . . . . . Utility 5 | . 1 . 4 . Device 2 | . . . 2 . Storage 2 | . . . 2 . Processor . | . . . . . Hackware . | . . . . . Protection 1 | . 1 . . . Artifact . | . . . . . Weapon 4 | . . . 4 . Energy Gun 2 | . . . 2 . Energy Cannon . | . . . . . Ballistic Gun 2 | . . . 2 . Ballistic Cannon . | . . . . . Launcher . | . . . . . Special Weapon . | . . . . . Impact Weapon . | . . . . . Slashing Weapon . | . . . . . Piercing Weapon . | . . . . . Special Melee Weapon . | . . . . . Unidentified Prototypes . | . . . . . Parts Lost 15 | . . 3 4 8 Power 3 | . . . 2 1 Propulsion 4 | . . 1 1 2 Utility 3 | . . 1 . 2 Weapon 5 | . . 1 1 3 Highest Loss Streak 8 | . . 2 3 8 To Critical Strikes . | . . . . . Average Backups 6 | . 6 7 5 5 Power 1 | . 1 2 1 . Propulsion 3 | . 4 4 2 2 Utility . | . . . 1 2 Weapon . | . 1 1 . . Tool/Special . | . . . . . Unused Backups 3 | . . . 1 2 Power . | . . . . . Propulsion 1 | . . . 1 . Utility 2 | . . . . 2 Weapon . | . . . . . Tool/Special . | . . . . . Average Slot Usage (%) 86 | . 94 96 70 82 Engine 4 | . 11 . 7 6 Core 7 | . 2 14 2 . Treads 12 | . . 10 15 21 Leg 12 | . 28 17 5 . Device 5 | . . . 8 22 Storage 12 | . 14 14 11 11 Protection 6 | . 8 11 . . Energy Gun 5 | . . . 10 21 Ballistic Gun 18 | . 28 27 9 1 Peak Build Rating 9 | . 9 9 8 8 Average Rating 7 | . 7 8 6 7 On Entrance 7 | 6 6 9 7 7 Naked Turns . | . . . . . Heaviest Build 29 | 13 16 16 29 27 Greatest Support 40 | 20 20 40 40 40 Greatest Overweight (x) 1 | . . . 1 . Average Overweight (x) . | . . . . . Largest Inventory Capacity 15 | . 8 8 15 15 Average Capacity 10 | . 8 8 13 15 Most Carried 9 | . 7 8 9 6 Average Carried 6 | . 6 7 5 5 Final Capacity 15 | 8 8 8 15 15 Final Carried 8 | 6 7 8 6 4 Class Distribution -------------------- 76% | Mutant 23% | Scavenger-Mutant Dominant Class ---------------- Mutant | -10/Materials Mutant | -10/Mines Mutant | -9/Materials Scavenger-Mutant | -9/Mines Resources | -11 -10 -10 -9 -9 ----------- Run | Yrd Mat Min Mat Min Matter Collected 622 | 200 30 206 186 . Remotely . | . . . . . Salvage Created 584 | . 84 231 216 53 Parts 52 | . 4 20 23 5 Haulers Intercepted . | . . . . . Recyclers Shooed 1 | . . . 1 . Parts Field Recycled . | . . . . . Retrieved Matter . | . . . . . Parts Self-Destructed . | . . . . . Prevented . | . . . . . Kills | -11 -10 -10 -9 -9 ------- Run | Yrd Mat Min Mat Min Combat Hostiles Destroyed 19 | . 2 10 6 1 Guns 19 | . 2 10 6 1 Classes Destroyed 6 | . 1 1 3 1 Worker 1 | . . . 1 . Builder 2 | . . . 2 . Swarmer 9 | . . 6 3 . Grunt 8 | . 2 4 2 . Sentry 1 | . . . 1 . Demolisher 1 | . . . . 1 Best Kill Streak 4 | . 2 4 4 1 Combat Bots Only 4 | . 2 4 4 1 Max Kills in Single Turn 2 | . 1 2 1 1 Gunslinging . | . . . . . Exploded . | . . . . . Melee . | . . . . . Uniques/NPCs Destroyed . | . . . . . Combat | -11 -10 -10 -9 -9 -------- Run | Yrd Mat Min Mat Min Hostile Shots Fired 197 | . 5 100 75 17 Missed 53 | . 1 28 23 1 Hits 144 | . 4 72 52 16 Projectile 144 | . 4 72 52 16 AOE 17 | . . . . 17 Critical Strikes 4 | . . 1 3 . Damage Taken 2025 | . 50 684 585 706 Core 527 | . 11 125 166 225 Absorbed by Shields . | . . . . . Core Remaining (%) 72 | 100 . 45 . . Volleys Fired 100 | . 5 52 36 7 Largest 2 | . 2 2 2 2 Hottest 80 | . 40 40 80 80 Shots Fired 184 | . 10 104 60 10 Gun 184 | . 10 104 60 10 Cannon . | . . . . . Launcher . | . . . . . Special . | . . . . . Kinetic 160 | . 10 104 44 2 Thermal 24 | . . . 16 8 Explosive . | . . . . . Electromagnetic . | . . . . . Robot Hit Streak 11 | . 3 6 11 4 Robot Miss Streak 3 | . 1 2 2 3 Penetration Max . | . . . . . Secondary Targets 3 | . . 3 . . Max Gunslinging Chain 1 | . . 1 . . Shots Hit Robots 83 | . 7 27 42 7 Core Hits 42 | . 5 14 17 6 Critical Kills . | . . . . . Critical Parts Destroyed . | . . . . . Critical Strikes . | . . . . . Melee Attacks . | . . . . . Impact . | . . . . . Slashing . | . . . . . Piercing . | . . . . . Sneak Attacks . | . . . . . Combat Hostiles . | . . . . . Follow-up Attacks . | . . . . . Damage Inflicted 900 | . 80 335 400 85 Guns 894 | . 80 332 397 85 Cannons . | . . . . . Explosions . | . . . . . Melee . | . . . . . Ramming 6 | . . 3 3 . Kinetic 716 | . 80 332 285 19 Thermal 178 | . . . 112 66 Explosive . | . . . . . Electromagnetic . | . . . . . Impact . | . . . . . Slashing . | . . . . . Piercing . | . . . . . Highest Corruption . | . . . . . Average Corruption . | . . . . . Corruption Purged . | . . . . . Corruption Blocked . | . . . . . Overload Shots . | . . . . . Overflow Damage . | . . . . . Projectiles . | . . . . . Explosions . | . . . . . Melee . | . . . . . Knockbacks . | . . . . . Impact . | . . . . . Kinetic . | . . . . . Secondary . | . . . . . Self-Inflicted Damage 3 | . . 3 . . Shots . | . . . . . Rammed . | . . . . . Targets Rammed 1 | . . . 1 . Kicked . | . . . . . Crushed 1 | . . . 1 . Highest Temperature 78 | . 15 78 12 . Average Temperature 15 | . 7 17 4 . Received Heat Transfer 378 | . 27 150 201 . Siege Activations . | . . . . . Martial Activations . | . . . . . Shielding Activations . | . . . . . Robots Disrupted . | . . . . . Combat Hostiles . | . . . . . Robots Corrupted . | . . . . . Combat Hostiles . | . . . . . Parts Fried . | . . . . . Impact Corruptions . | . . . . . Robots Melted . | . . . . . Combat Hostiles . | . . . . . Parts Melted 1 | . . . . 1 Heat Transferred 400 | . . . 250 150 Parts Sabotaged . | . . . . . Parts Stolen . | . . . . . Parts Stripped . | . . . . . Power Chain Reactions . | . . . . . Alert | -11 -10 -10 -9 -9 ------- Run | Yrd Mat Min Mat Min Maximum Alert Level . | . . . . . Low Security (%) 100 | . 100 100 100 100 Level 1 . | . . . . . Level 2 . | . . . . . Level 3 . | . . . . . Level 4 . | . . . . . Level 5 . | . . . . . High Security . | . . . . . Max Security . | . . . . . Peak Influence 112 | . 50 112 92 30 Initial 32 | . . 11 32 2 Average 31 | . 17 27 50 1 Influence Increases 465 | . 50 220 165 30 Destroy 0b10 Robot/C 380 | . 40 200 120 20 Destroy 0b10 Robot/NC 15 | . . . 15 . Destroy Leader 70 | . 10 20 30 10 Influence Decreases 465 | . 20 166 242 37 Entered New Map 76 | . . 19 52 5 Time Decay 299 | . 20 117 150 12 Lost Part 90 | . . 30 40 20 Squads Dispatched 2 | . 1 . 1 . Investigation . | . . . . . Extermination . | . . . . . Reinforcement 2 | . 1 . 1 . Assault . | . . . . . Garrison . | . . . . . Intercept . | . . . . . Searches Triggered . | . . . . . Construction Impeded . | . . . . . Haulers Reinforced . | . . . . . Active Scanning Responses . | . . . . . Cargo Convoy Interrupts . | . . . . . Stealth | -11 -10 -10 -9 -9 --------- Run | Yrd Mat Min Mat Min Distress Signals . | . . . . . Communications Jammed . | . . . . . Distress Signals . | . . . . . Times Spotted 34 | . 3 17 12 2 Peak Tracking Total 10 | . 2 10 4 2 Tactical Retreats . | . . . . . Traps | -11 -10 -10 -9 -9 ------- Run | Yrd Mat Min Mat Min Traps Triggered . | . . . . . Indirectly . | . . . . . Trap Hack Attempts . | . . . . . Triggered . | . . . . . Disarmed . | . . . . . Reprogrammed 3 | . . . 3 . Reused 1 | . . 1 . . Traps Extracted . | . . . . . Installed 2 | . . 2 . . Triggered . | . . . . . Most Traps Carried 1 | . . 1 . . Machines | -11 -10 -10 -9 -9 ---------- Run | Yrd Mat Min Mat Min Machines Disabled . | . . . . . Max in Single Turn . | . . . . . Machines Repaired . | . . . . . Machines Dismantled . | . . . . . Machines Sabotaged . | . . . . . Overloaded Fab Kills . | . . . . . Hacking | -11 -10 -10 -9 -9 --------- Run | Yrd Mat Min Mat Min Machines Accessed 2 | . 1 . 1 . Terminals 2 | . 1 . 1 . Fabricators . | . . . . . Repair Stations . | . . . . . Recycling Units . | . . . . . Scanalyzers . | . . . . . Garrison Access . | . . . . . Total Hacks 4 | . 1 . 3 . Successful 2 | . . . 2 . Failed 2 | . 1 . 1 . Catastrophic 1 | . 1 . . . Database Lockouts . | . . . . . Manual 3 | . 1 . 2 . Terminals 4 | . 1 . 3 . Fabricators . | . . . . . Repair Stations . | . . . . . Recycling Units . | . . . . . Scanalyzers . | . . . . . Garrison Access . | . . . . . Terminal Hacks 2 | . . . 2 . Locate Traps 1 | . . . 1 . Reprogram Traps 1 | . . . 1 . Fabricator Hacks . | . . . . . Repair Station Hacks . | . . . . . Recycling Unit Hacks . | . . . . . Scanalyzer . | . . . . . Garrison Access Hacks . | . . . . . Unauthorized Hacks . | . . . . . Terminals . | . . . . . Fabricators . | . . . . . Repair Stations . | . . . . . Recycling Units . | . . . . . Scanalyzers . | . . . . . Garrison Access . | . . . . . Data Cores Recovered . | . . . . . Used . | . . . . . Hacking Detections 2 | . 1 . 1 . Full Trace Events . | . . . . . Feedback Events . | . . . . . Feedback Blocked . | . . . . . Robot Schematics Acquired . | . . . . . Robots Built . | . . . . . Authchips . | . . . . . Time . | . . . . . Total Robot Build Rating . | . . . . . Part Schematics Acquired . | . . . . . Parts Built . | . . . . . Authchips . | . . . . . Time . | . . . . . Total Part Build Rating . | . . . . . Parts Repaired . | . . . . . Time . | . . . . . Parts Recycled . | . . . . . Recycled Matter . | . . . . . Retrieved Matter . | . . . . . Retrieved Components . | . . . . . Parts Scanalyzed . | . . . . . Part Schematics Acquired . | . . . . . Parts Damaged . | . . . . . Bothacking | -11 -10 -10 -9 -9 ------------ Run | Yrd Mat Min Mat Min Used RIF Installer . | . . . . . Robots Hacked . | . . . . . Non-combat . | . . . . . Combat . | . . . . . Robot Hacks Applied . | . . . . . Relay Couplers Released . | . . . . . Fabnet Peak Effective % . | . . . . . Robots Rewired . | . . . . . Allies Hacked . | . . . . . Hacks Repelled . | . . . . . Allies | -11 -10 -10 -9 -9 -------- Run | Yrd Mat Min Mat Min Total Allies 3 | . . . . 3 Largest Group 3 | . . . . 3 Highest-Rated Group 40 | . . . . 40 Highest-Rated Ally 16 | . . . . 16 Total Orders . | . . . . . Ally Attacks 1 | . . . . 1 Total Damage 18 | . . . . 18 Kills . | . . . . . Allies Corrupted . | . . . . . Allies Melted . | . . . . . Intel | -11 -10 -10 -9 -9 ------- Run | Yrd Mat Min Mat Min Active Infowar (turns) . | . . . . . Robot Analysis Total . | . . . . . Derelict Logs Recovered . | . . . . . Drone Launches . | . . . . . Drone Recoveries . | . . . . . Exploration | -11 -10 -10 -9 -9 ------------- Run | Yrd Mat Min Mat Min Turns Passed 937 | . 91 429 316 101 Spaces Moved 426 | 1 51 199 124 51 Core . | . . . . . Treads 176 | . . 19 106 51 Legs 250 | 1 51 180 18 . Wheels . | . . . . . Hover . | . . . . . Flight . | . . . . . Fastest Speed 120 | 120 120 120 120 160 Average Speed 137 | 120 120 123 155 160 Slowest Speed 190 | 120 120 160 190 160 Overloaded Moves . | . . . . . Propulsion Burnouts . | . . . . . Robots Hopped . | . . . . . Potential Cave-ins . | . . . . . Cave-ins Triggered . | . . . . . Exploration Rate (%) 17 | 2 16 43 11 17 Regions Visited 4 Branch Regions 2 Pre-discovered Areas . | . . . . . Known Exits Taken . | . . . . . Unknown Exits Taken 4 | 1 1 1 1 . Scrap Searched 1 | . . 1 . . Spaces Dug . | . . . . . Terrain Destroyed . | . . . . . Melee . | . . . . . Projectile . | . . . . . AOE . | . . . . . Terrain Rammed 1 | . . 1 . . Walls Destroyed . | . . . . . Machines Disabled . | . . . . . Actions | -11 -10 -10 -9 -9 --------- Run | Yrd Mat Min Mat Min Total 614 | . 71 286 197 60 Wait 46 | . 12 22 12 . Move 422 | . 50 198 123 51 Hop . | . . . . . Pick Up 15 | . 2 4 9 . Fast Attach . | . . . . . Attach 13 | . 1 1 9 2 Detach . | . . . . . Swap 7 | . 1 4 2 . Drop 7 | . . 2 5 . Fire 100 | . 5 52 36 7 Melee . | . . . . . Ram 1 | . . 1 . . Kick . | . . . . . Crush 1 | . . . 1 . Escape Stasis . | . . . . . Rewire . | . . . . . Trap 2 | . . 2 . . Miscellaneous . | . . . . . Route ------- -11/Scrapyard -10/Materials -10/Mines -9/Materials (discovered 2 exits: [*Min] / [*Sto]) -9/Mines History --------- Turn | Location | Event 1 | -11/Scrapyard | Discovered new exit (range 0) 1 | -11/Scrapyard | Entered Materials 74 | -10/Materials | Discovered new exit (range 16) 92 | -10/Materials | Entered Mines 210 | -10/Mines | Found a hidden stash of uninstalled traps 300 | -10/Mines | Build established: Mutant 311 | -10/Mines | Excavation squad dispatched 311 | -10/Mines | A large section of the Mines collapsed 498 | -10/Mines | Core integrity fell below 50% 508 | -10/Mines | Discovered new exit (range 11) 521 | -10/Mines | Entered Materials 521 | -9/Materials | Evolved 2 slots: Utility x2 613 | -9/Materials | Lost 3 parts (1p1n1w) 789 | -9/Materials | Discovered new exit (range 13) 817 | -9/Materials | Discovered new exit (range 16) 837 | -9/Materials | Entered Mines 907 | -9/Mines | Assembled infested the area 909 | -9/Mines | Assisted by bots powering up and referring to "LRC-V3" 923 | -9/Mines | Core integrity fell below 50% 935 | -9/Mines | Core integrity fell below 20% 938 | -9/Mines | Self-destructed Last Messages --------------- squad. 00909_ Trooper 2a: "Hello LRC-V3. What is your command?" 00909_ Mercenary 2a: "Hello LRC-V3. What is your command?" 00909_ Trooper 2b: "Hello LRC-V3. What is your command?" 00917_ C-30 ARC bursts open, deploying its payload. 00917_ D-53 Grenadier unfolds itself. 00919_ Mercenary 2a destroyed. 00919_ Trooper 2b destroyed. 00922_ Sml. Laser destroyed. 00922_ Trooper 2a destroyed. 00922_ Lgt. Treads destroyed. 00926_ T-07 Excavator destroyed. 00930_ Lgt. Assault Rifle destroyed. 00930_ Heat Sink destroyed. 00930_ Lgt. Treads destroyed. 00932_ Lgt. Ion Engine destroyed. 00932_ Launcher Guidance Computer melted. 00932_ D-53 Grenadier destroyed. 00938_ Heat Sink destroyed. 00938_ Sml. Laser destroyed. Map ----- +----------------------------------------------------+ | ?????????????????????????????????????????????????? | | ?????????????????????????????????????????????????? | | ?????????????????????????????????????????????????? | | ?????????????????????????????????????????????????? | | ?????????????????????????????????????????????????? | | ?????????????????????????????????????????????????? | | ?????????????????????????????????????????????????? | | ?????????????????????????????????????????????????? | | ?????????????????????????????????????????????????? | | ?????????????????????????????????????????????????? | | ?????????????????????????????????????????????????? | | ??????????????????????????????????????????????#??? | | ????????????????????????????????????????????? #??? | | ????????????????????????????????????????????? #??? | | ????????????????????????????????????????????? #??? | | ????????????????????????????????????????????? #??? | | ????????????????????????????????????????????# #??? | | ??????????????????????????????????????????## ##?? | | ????????????????????########??????????????# #?? | | ????????????????????# # ####???????????# ##? | | ????????????????????# #???????????# #? | | ????????????????????# #???????????# #? | | ????????????????????# #??????????## #? | | ?????????????????#### ##??######## #? | | ????????????????## #?## ## #? | | ????????????????# @ #?# ##? | | ????????????????# #?# ###?? | | ????????????????## #?## ##???? | | ?????????????????##### ##??#### ##????? | | ?????????????????????## ##??????### #?????? | | ??????????????????????#### #?????????## #?????? | | ?????????????????????????##! ##?????????# #?????? | | ????????????????????????###%d #####?????# #?????? | | ???????????????????????## ]= ##????# #?????? | | ??????????????????????## ##???# #?????? | | ??????????????????????# "% ##??# #?????? | | ??????????????? ### #### #?????? | | ??????????????? #??##### #?????? | | ??????????????? #???????## #?????? | | ????????????????#### #?????????###########?????? | | ???????????????????####??????????????????????????? | | ?????????????????????????????????????????????????? | | ?????????????????????????????????????????????????? | | ?????????????????????????????????????????????????? | | ?????????????????????????????????????????????????? | | | | | | | | | | | +----------------------------------------------------+ Best States ------------- Heat Dissipation 48 Energy Generation 14 Energy Capacity 250 Matter Stores 300 Matter Capacity 300 Sight Range 16 Terrain Scan Density 10 Armor Coverage 150 Evasion (%) 55 Recoil Reduction 2 Item Schematics ----------------- None Robot Schematics ------------------ None Fabricated ------------ Nothing Repaired ---------- Nothing Alien Tech Used ----------------- None Achievements -------------- None Challenges ------------ None Game ------ Seed ScatterDecoderGuard Manual? 0 Play Time 00:07:21 Cumulative 122.8 hours Start 2025.08.12 @ 23:24:22 End 2025.08.12 @ 23:31:19 Sessions 1 Manual Loads 0 Difficulty Rogue Special Mode None Game No. 152 Rogue 137 Adventurer 15 Explorer 0 Win Type - Total 4 Types 3/0/1/0/0/0/0/0/0/0 Lore% 39 Gallery% 61 Achievement% 57 Wizard Run 0 Options --------- Layout 0 ASCII 0 Keyboard 0 Movement Mouse Keybinds 0 Fullscreen 2 Font 36/Smallcaps Map View 76x50 Zoom Use 0% Tactical HUD 1 Map Filters NONE Filters NONE Steam 1 RUN: ae90709c-da26-4654-ac14-d780aa2902c1